[Event "Titled Tuesday Blitz November 15 Early 2022"]
[White "Di Nicolantonio, Lucas"]
[Black "Alfaro, William"]
[WhiteFideId "680460"]
[BlackFideId "6100457"]
[WhiteElo "2358"]
[BlackElo "2096"]
[Result "1-0"]
[Round "01"]
[TimeControl "180+1"]
[Date "2022.11.16"]
[WhiteClock "0:01:00"]
[BlackClock "0:02:11"]

1. d4 {[%clk 0:02:53]}  Nf6 {[%clk 0:03:00]} 2. Bg5 {[%clk 0:02:52]}  g6 {[%clk 0:02:59]} 3. Bxf6 {[%clk 0:02:52]}  exf6 {[%clk 0:03:00]} 4. e3 {[%clk 0:02:52]}  Bg7 {[%clk 0:03:00]} 5. g3 {[%clk 0:02:53]}  f5 {[%clk 0:03:00]} 6. Bg2 {[%clk 0:02:54]}  O-O {[%clk 0:03:00]} 7. Ne2 {[%clk 0:02:55]}  c5 {[%clk 0:03:01]} 8. O-O {[%clk 0:02:55]}  d6 {[%clk 0:03:00]} 9. Nbc3 {[%clk 0:02:50]}  Nc6 {[%clk 0:02:57]} 10. dxc5 {[%clk 0:02:40]}  dxc5 {[%clk 0:02:57]} 11. Qxd8 {[%clk 0:02:40]}  Nxd8 {[%clk 0:02:56]} 12. Rfd1 {[%clk 0:02:35]}  Be6 {[%clk 0:02:55]} 13. Nf4 {[%clk 0:02:32]}  Rb8 {[%clk 0:02:52]} 14. Nxe6 {[%clk 0:02:13]}  Nxe6 {[%clk 0:02:52]} 15. Rd7 {[%clk 0:02:12]}  Rfd8 {[%clk 0:02:52]} 16. Rad1 {[%clk 0:02:10]}  Rxd7 {[%clk 0:02:52]} 17. Rxd7 {[%clk 0:02:11]}  Rd8 {[%clk 0:02:52]} 18. Rxb7 {[%clk 0:01:57]}  Rd2 {[%clk 0:02:51]} 19. Rb8+ {[%clk 0:01:29]}  Bf8 {[%clk 0:02:51]} 20. Bd5 {[%clk 0:01:25]}  Rxc2 {[%clk 0:02:50]} 21. Rb7 {[%clk 0:01:17]}  Bg7 {[%clk 0:02:48]} 22. a4 {[%clk 0:01:13]}  Bxc3 {[%clk 0:02:44]} 23. bxc3 {[%clk 0:01:13]}  Rxc3 {[%clk 0:02:45]} 24. Rxa7 {[%clk 0:01:13]}  Rc1+ {[%clk 0:02:38]} 25. Kg2 {[%clk 0:01:13]}  Rd1 {[%clk 0:02:38]} 26. Rd7 {[%clk 0:01:08]}  Ra1 {[%clk 0:02:27]} 27. Ra7 {[%clk 0:01:01]}  Rd1 {[%clk 0:02:15]} 28. Bc6 {[%clk 0:01:00]}  c4 {[%clk 0:02:14]} 29. Be8 {[%clk 0:01:00]}  Nd8 {[%clk 0:02:13]} 30. Rc7 {[%clk 0:01:00]}  Kf8 {[%clk 0:02:12]} 31. Bb5 {[%clk 0:00:59]}  Ne6 {[%clk 0:02:12]} 32. Rxc4 {[%clk 0:00:59]}  h5 {[%clk 0:02:10]} 33. a5 {[%clk 0:01:00]}  Ra1 {[%clk 0:02:10]} 34. Ra4 {[%clk 0:01:00]}  Ke7 {[%clk 0:02:11]} 35. Rxa1 {[%clk 0:01:00]} 1-0


[Site "https://www.chess.com"]

[Event "Titled Tuesday Blitz November 15 Early 2022"]
[White "Dudzinski, Pawel"]
[Black "Milikow, Yoav"]
[WhiteFideId "1117890"]
[BlackFideId "2822237"]
[WhiteElo "2086"]
[BlackElo "2341"]
[Result "0-1"]
[Round "01"]
[TimeControl "180+1"]
[Date "2022.11.16"]
[WhiteClock "0:00:17"]
[BlackClock "0:00:27"]

1. e4 {[%clk 0:03:00]}  e5 {[%clk 0:02:59]} 2. Nc3 {[%clk 0:02:59]}  Nf6 {[%clk 0:02:58]} 3. g3 {[%clk 0:02:59]}  d5 {[%clk 0:02:57]} 4. exd5 {[%clk 0:03:00]}  c6 {[%clk 0:02:58]} 5. dxc6 {[%clk 0:02:59]}  Nxc6 {[%clk 0:02:59]} 6. Bg2 {[%clk 0:02:59]}  Bc5 {[%clk 0:02:58]} 7. Nge2 {[%clk 0:02:59]}  Bf5 {[%clk 0:02:55]} 8. d3 {[%clk 0:02:57]}  Qd7 {[%clk 0:02:44]} 9. h3 {[%clk 0:02:52]}  h6 {[%clk 0:02:41]} 10. Be3 {[%clk 0:02:53]}  Nd4 {[%clk 0:02:38]} 11. Ne4 {[%clk 0:02:42]}  Bxe4 {[%clk 0:02:10]} 12. dxe4 {[%clk 0:02:33]}  Qc6 {[%clk 0:01:51]} 13. Nxd4 {[%clk 0:02:24]}  exd4 {[%clk 0:01:49]} 14. Bxd4 {[%clk 0:02:23]}  Rd8 {[%clk 0:01:44]} 15. c3 {[%clk 0:02:23]}  O-O {[%clk 0:01:36]} 16. O-O {[%clk 0:02:21]}  Bxd4 {[%clk 0:01:29]} 17. cxd4 {[%clk 0:02:20]}  Qb6 {[%clk 0:01:30]} 18. e5 {[%clk 0:02:04]}  Rxd4 {[%clk 0:01:24]} 19. Qe2 {[%clk 0:01:55]}  Re8 {[%clk 0:01:16]} 20. Kh2 {[%clk 0:01:47]}  Qa5 {[%clk 0:01:03]} 21. f4 {[%clk 0:01:41]}  Nd5 {[%clk 0:00:56]} 22. Rfd1 {[%clk 0:01:26]}  Rxd1 {[%clk 0:00:42]} 23. Rxd1 {[%clk 0:01:27]}  Nc7 {[%clk 0:00:37]} 24. a3 {[%clk 0:01:14]}  Qb6 {[%clk 0:00:37]} 25. Rd6 {[%clk 0:01:04]}  Qxd6 {[%clk 0:00:35]} 26. exd6 {[%clk 0:00:56]}  Rxe2 {[%clk 0:00:36]} 27. dxc7 {[%clk 0:00:57]}  Rc2 {[%clk 0:00:33]} 28. g4 {[%clk 0:00:18]}  Rxc7 {[%clk 0:00:32]} 29. b3 {[%clk 0:00:17]}  b6 {[%clk 0:00:30]} 30. a4 {[%clk 0:00:16]}  Rc2 {[%clk 0:00:25]} 31. Kg3 {[%clk 0:00:16]}  Rc3+ {[%clk 0:00:25]} 32. Kh4 {[%clk 0:00:16]}  Rxb3 {[%clk 0:00:26]} 33. g5 {[%clk 0:00:17]}  hxg5+ {[%clk 0:00:25]} 34. fxg5 {[%clk 0:00:17]}  Rb4+ {[%clk 0:00:26]} 35. Kh5 {[%clk 0:00:17]}  g6+ {[%clk 0:00:26]} 36. Kh6 {[%clk 0:00:17]}  Rh4# {[%clk 0:00:27]} 0-1


[Site "https://www.chess.com"]

[Event "Titled Tuesday Blitz November 15 Early 2022"]
[White "Fedoseev, Vladimir"]
[Black "Bilan, Danila"]
[WhiteFideId "24130737"]
[BlackFideId "24161918"]
[WhiteElo "2726"]
[BlackElo "2173"]
[Result "1-0"]
[Round "01"]
[TimeControl "180+1"]
[Date "2022.11.15"]
[WhiteClock "0:01:42"]
[BlackClock "0:00:04"]

1. e4 {[%clk 0:03:00]}  c6 {[%clk 0:02:58]} 2. Nf3 {[%clk 0:03:00]}  d5 {[%clk 0:02:59]} 3. Nc3 {[%clk 0:03:00]}  Bg4 {[%clk 0:02:58]} 4. h3 {[%clk 0:03:00]}  Bxf3 {[%clk 0:02:53]} 5. Qxf3 {[%clk 0:03:01]}  e6 {[%clk 0:02:53]} 6. d4 {[%clk 0:03:00]}  dxe4 {[%clk 0:02:52]} 7. Qxe4 {[%clk 0:03:00]}  Nf6 {[%clk 0:02:49]} 8. Qd3 {[%clk 0:03:00]}  Bd6 {[%clk 0:02:43]} 9. Be2 {[%clk 0:02:59]}  Qc7 {[%clk 0:02:40]} 10. O-O {[%clk 0:02:58]}  Nbd7 {[%clk 0:02:38]} 11. a4 {[%clk 0:02:52]}  a5 {[%clk 0:02:34]} 12. Nd1 {[%clk 0:02:51]}  O-O {[%clk 0:02:31]} 13. Ne3 {[%clk 0:02:49]}  Nd5 {[%clk 0:02:07]} 14. Bf3 {[%clk 0:02:48]}  Rad8 {[%clk 0:02:03]} 15. c3 {[%clk 0:02:45]}  Nf4 {[%clk 0:01:43]} 16. Qc2 {[%clk 0:02:44]}  Ng6 {[%clk 0:01:20]} 17. g3 {[%clk 0:02:39]}  e5 {[%clk 0:01:12]} 18. d5 {[%clk 0:02:29]}  Nf6 {[%clk 0:00:54]} 19. dxc6 {[%clk 0:02:28]}  bxc6 {[%clk 0:00:54]} 20. Nf5 {[%clk 0:02:25]}  Bc5 {[%clk 0:00:53]} 21. Bg5 {[%clk 0:02:25]}  Qd7 {[%clk 0:00:39]} 22. Bxf6 {[%clk 0:02:13]}  gxf6 {[%clk 0:00:40]} 23. Rad1 {[%clk 0:02:12]}  Qe6 {[%clk 0:00:32]} 24. Bg4 {[%clk 0:02:11]}  Qc4 {[%clk 0:00:15]} 25. b3 {[%clk 0:02:08]}  Qa6 {[%clk 0:00:12]} 26. h4 {[%clk 0:02:04]}  Rfe8 {[%clk 0:00:06]} 27. h5 {[%clk 0:02:02]}  Nf8 {[%clk 0:00:06]} 28. Bf3 {[%clk 0:01:59]}  Ne6 {[%clk 0:00:05]} 29. Nh6+ {[%clk 0:01:49]}  Kg7 {[%clk 0:00:04]} 30. Nxf7 {[%clk 0:01:48]}  Kxf7 {[%clk 0:00:03]} 31. Qxh7+ {[%clk 0:01:46]}  Ng7 {[%clk 0:00:04]} 32. h6 {[%clk 0:01:45]}  Rg8 {[%clk 0:00:04]} 33. Rxd8 {[%clk 0:01:42]} 1-0


[Site "https://www.chess.com"]

[Event "Titled Tuesday Blitz November 15 Early 2022"]
[White "Fernandez Guillen, Ernesto J."]
[Black "Zacurdajev, Dmitry"]
[WhiteFideId "3512428"]
[BlackFideId "4196309"]
[WhiteElo "2450"]
[BlackElo "2179"]
[Result "1-0"]
[Round "01"]
[TimeControl "180+1"]
[Date "2022.11.16"]
[WhiteClock "0:01:25"]
[BlackClock "0:00:06"]

1. e4 {[%clk 0:02:56]}  c6 {[%clk 0:02:59]} 2. d4 {[%clk 0:02:56]}  d5 {[%clk 0:03:00]} 3. e5 {[%clk 0:02:56]}  c5 {[%clk 0:03:00]} 4. dxc5 {[%clk 0:02:57]}  Nc6 {[%clk 0:03:00]} 5. a3 {[%clk 0:02:57]}  Nxe5 {[%clk 0:02:57]} 6. b4 {[%clk 0:02:57]}  e6 {[%clk 0:02:53]} 7. Bb2 {[%clk 0:02:56]}  Nc6 {[%clk 0:02:50]} 8. Nf3 {[%clk 0:02:54]}  Nf6 {[%clk 0:02:50]} 9. c4 {[%clk 0:02:51]}  Be7 {[%clk 0:01:56]} 10. Nbd2 {[%clk 0:02:47]}  O-O {[%clk 0:01:49]} 11. Be2 {[%clk 0:02:41]}  a5 {[%clk 0:01:22]} 12. Qb3 {[%clk 0:02:24]}  axb4 {[%clk 0:01:08]} 13. axb4 {[%clk 0:02:22]}  Rxa1+ {[%clk 0:01:08]} 14. Bxa1 {[%clk 0:02:23]}  d4 {[%clk 0:01:02]} 15. O-O {[%clk 0:02:18]}  e5 {[%clk 0:00:43]} 16. Bd3 {[%clk 0:02:13]}  Bg4 {[%clk 0:00:24]} 17. Re1 {[%clk 0:02:11]}  Qc7 {[%clk 0:00:21]} 18. Qb1 {[%clk 0:02:05]}  Ra8 {[%clk 0:00:11]} 19. b5 {[%clk 0:02:02]}  Nd8 {[%clk 0:00:08]} 20. Nxe5 {[%clk 0:01:48]}  Bxc5 {[%clk 0:00:06]} 21. Nxg4 {[%clk 0:01:25]} 1-0


[Site "https://www.chess.com"]

[Event "Titled Tuesday Blitz November 15 Early 2022"]
[White "Gabdrakhmanov, Azat"]
[Black "Fernandez Hernandez, Gerardo"]
[WhiteFideId "34189197"]
[BlackFideId "2207400"]
[WhiteElo "2254"]
[BlackElo "2214"]
[Result "1-0"]
[Round "01"]
[TimeControl "180+1"]
[Date "2022.11.16"]
[WhiteClock "0:00:36"]
[BlackClock "0:00:01"]

1. e4 {[%clk 0:03:00]}  e6 {[%clk 0:02:59]} 2. d4 {[%clk 0:03:00]}  d5 {[%clk 0:03:00]} 3. e5 {[%clk 0:03:01]}  c5 {[%clk 0:02:59]} 4. c3 {[%clk 0:03:01]}  Nc6 {[%clk 0:03:00]} 5. Nf3 {[%clk 0:03:02]}  Qb6 {[%clk 0:03:01]} 6. a3 {[%clk 0:03:02]}  f6 {[%clk 0:03:00]} 7. b4 {[%clk 0:02:58]}  fxe5 {[%clk 0:03:00]} 8. dxe5 {[%clk 0:02:58]}  c4 {[%clk 0:02:57]} 9. Bf4 {[%clk 0:02:51]}  Nge7 {[%clk 0:02:43]} 10. Nbd2 {[%clk 0:02:49]}  Ng6 {[%clk 0:02:40]} 11. Bg3 {[%clk 0:02:49]}  Be7 {[%clk 0:02:37]} 12. h4 {[%clk 0:02:42]}  O-O {[%clk 0:02:32]} 13. h5 {[%clk 0:02:34]}  Nf4 {[%clk 0:02:32]} 14. Bxf4 {[%clk 0:02:33]}  Rxf4 {[%clk 0:02:31]} 15. g3 {[%clk 0:02:32]}  Rf7 {[%clk 0:02:24]} 16. Qe2 {[%clk 0:02:31]}  Bd7 {[%clk 0:02:16]} 17. h6 {[%clk 0:02:28]}  g6 {[%clk 0:02:08]} 18. Bh3 {[%clk 0:02:26]}  Raf8 {[%clk 0:02:05]} 19. Bg4 {[%clk 0:02:26]}  Nxe5 {[%clk 0:01:01]} 20. Qxe5 {[%clk 0:02:02]}  Bf6 {[%clk 0:00:57]} 21. Qe3 {[%clk 0:01:57]}  Qxe3+ {[%clk 0:00:55]} 22. fxe3 {[%clk 0:01:58]}  Bxc3 {[%clk 0:00:55]} 23. O-O-O {[%clk 0:01:51]}  Ba4 {[%clk 0:00:37]} 24. Bxe6 {[%clk 0:01:34]}  Bxd1 {[%clk 0:00:34]} 25. Rxd1 {[%clk 0:01:35]}  Kh8 {[%clk 0:00:27]} 26. Bxf7 {[%clk 0:01:32]}  Rxf7 {[%clk 0:00:28]} 27. Nxc4 {[%clk 0:01:09]}  Rxf3 {[%clk 0:00:24]} 28. Rxd5 {[%clk 0:01:09]}  Kg8 {[%clk 0:00:19]} 29. g4 {[%clk 0:01:06]}  Rg3 {[%clk 0:00:14]} 30. g5 {[%clk 0:01:04]}  Rg4 {[%clk 0:00:13]} 31. Nd6 {[%clk 0:00:57]}  Kf8 {[%clk 0:00:11]} 32. Kc2 {[%clk 0:00:52]}  Be1 {[%clk 0:00:10]} 33. Kd3 {[%clk 0:00:49]}  Bf2 {[%clk 0:00:09]} 34. Ne4 {[%clk 0:00:47]}  Bh4 {[%clk 0:00:09]} 35. Rd7 {[%clk 0:00:43]}  Bxg5 {[%clk 0:00:05]} 36. Rxh7 {[%clk 0:00:42]}  Be7 {[%clk 0:00:01]} 37. Rh8+ {[%clk 0:00:35]}  Kf7 {[%clk 0:00:01]} 38. Rb8 {[%clk 0:00:36]} 1-0


[Site "https://www.chess.com"]

[Event "Titled Tuesday Blitz November 15 Early 2022"]
[White "Georg, Heinz"]
[Black "Sargsyan, Anna M."]
[WhiteFideId "4607295"]
[BlackFideId "13308130"]
[WhiteElo "2303"]
[BlackElo "2284"]
[Result "0-1"]
[Round "01"]
[TimeControl "180+1"]
[Date "2022.11.16"]
[WhiteClock "0:01:07"]
[BlackClock "0:01:33"]

1. e4 {[%clk 0:02:58]}  c6 {[%clk 0:02:58]} 2. d4 {[%clk 0:02:57]}  d5 {[%clk 0:02:59]} 3. exd5 {[%clk 0:02:57]}  cxd5 {[%clk 0:03:00]} 4. c4 {[%clk 0:02:57]}  Nf6 {[%clk 0:02:59]} 5. Nc3 {[%clk 0:02:58]}  Nc6 {[%clk 0:03:00]} 6. Bg5 {[%clk 0:02:57]}  Qa5 {[%clk 0:02:59]} 7. Bxf6 {[%clk 0:02:55]}  exf6 {[%clk 0:02:58]} 8. cxd5 {[%clk 0:02:55]}  Bb4 {[%clk 0:02:36]} 9. dxc6 {[%clk 0:02:50]}  Bxc3+ {[%clk 0:02:36]} 10. bxc3 {[%clk 0:02:50]}  Qxc3+ {[%clk 0:02:37]} 11. Ke2 {[%clk 0:02:49]}  O-O {[%clk 0:02:37]} 12. f3 {[%clk 0:02:39]}  Re8+ {[%clk 0:02:31]} 13. Kf2 {[%clk 0:02:39]}  Qe3+ {[%clk 0:02:32]} 14. Kg3 {[%clk 0:02:39]}  h5 {[%clk 0:01:58]} 15. h4 {[%clk 0:02:36]}  bxc6 {[%clk 0:01:44]} 16. Bc4 {[%clk 0:02:31]}  Re4 {[%clk 0:01:39]} 17. Kh2 {[%clk 0:01:49]}  Rxh4+ {[%clk 0:01:33]} 18. Nh3 {[%clk 0:01:06]}  Rxh3+ {[%clk 0:01:33]} 19. gxh3 {[%clk 0:01:07]}  Qf2# {[%clk 0:01:33]} 0-1


[Site "https://www.chess.com"]

[Event "Titled Tuesday Blitz November 15 Early 2022"]
[White "Godzwon, Iwo"]
[Black "Langner, Ladislav"]
[WhiteFideId "21802483"]
[BlackFideId "300403"]
[WhiteElo "2284"]
[BlackElo "2346"]
[Result "1-0"]
[Round "01"]
[TimeControl "180+1"]
[Date "2022.11.16"]
[WhiteClock "0:02:10"]
[BlackClock "0:00:50"]

1. e4 {[%clk 0:03:00]}  c5 {[%clk 0:02:59]} 2. Nf3 {[%clk 0:03:00]}  e6 {[%clk 0:03:00]} 3. d4 {[%clk 0:03:00]}  cxd4 {[%clk 0:03:01]} 4. Nxd4 {[%clk 0:03:01]}  a6 {[%clk 0:03:02]} 5. c4 {[%clk 0:02:55]}  Nf6 {[%clk 0:03:00]} 6. Nc3 {[%clk 0:02:53]}  Qc7 {[%clk 0:03:00]} 7. Be2 {[%clk 0:02:53]}  b6 {[%clk 0:03:00]} 8. O-O {[%clk 0:02:52]}  Bb7 {[%clk 0:03:01]} 9. Qd3 {[%clk 0:02:53]}  d6 {[%clk 0:03:00]} 10. f4 {[%clk 0:02:51]}  Nbd7 {[%clk 0:02:59]} 11. b4 {[%clk 0:02:52]}  Be7 {[%clk 0:02:58]} 12. Bb2 {[%clk 0:02:51]}  O-O {[%clk 0:02:57]} 13. Rac1 {[%clk 0:02:51]}  Rac8 {[%clk 0:02:52]} 14. g4 {[%clk 0:02:49]}  Qb8 {[%clk 0:02:44]} 15. g5 {[%clk 0:02:47]}  Ne8 {[%clk 0:02:44]} 16. Rf3 {[%clk 0:02:42]}  f5 {[%clk 0:02:37]} 17. Nxe6 {[%clk 0:02:27]}  fxe4 {[%clk 0:02:22]} 18. Nxe4 {[%clk 0:02:27]}  Qa8 {[%clk 0:02:23]} 19. Re3 {[%clk 0:02:27]}  d5 {[%clk 0:02:06]} 20. cxd5 {[%clk 0:02:26]}  Rxc1+ {[%clk 0:02:04]} 21. Bxc1 {[%clk 0:02:27]}  Bxd5 {[%clk 0:02:04]} 22. Nxf8 {[%clk 0:02:27]}  Nxf8 {[%clk 0:01:56]} 23. a3 {[%clk 0:02:22]}  Nd6 {[%clk 0:01:44]} 24. Nxd6 {[%clk 0:02:20]}  Bxd6 {[%clk 0:01:44]} 25. Qxa6 {[%clk 0:02:20]}  Bxf4 {[%clk 0:01:32]} 26. Qxa8 {[%clk 0:02:17]}  Bxe3+ {[%clk 0:01:09]} 27. Bxe3 {[%clk 0:02:18]}  Bxa8 {[%clk 0:01:09]} 28. Bc4+ {[%clk 0:02:15]}  Kh8 {[%clk 0:01:08]} 29. Bxb6 {[%clk 0:02:16]}  Nd7 {[%clk 0:01:08]} 30. Bd4 {[%clk 0:02:16]}  Nb8 {[%clk 0:00:55]} 31. b5 {[%clk 0:02:12]}  Nd7 {[%clk 0:00:52]} 32. a4 {[%clk 0:02:12]}  Nf8 {[%clk 0:00:50]} 33. a5 {[%clk 0:02:11]}  Ng6 {[%clk 0:00:50]} 34. a6 {[%clk 0:02:10]}  Nf4 {[%clk 0:00:50]} 35. b6 {[%clk 0:02:10]} 1-0


[Site "https://www.chess.com"]

[Event "Titled Tuesday Blitz November 15 Early 2022"]
[White "Goh, Zi Han"]
[Black "Postnikov, Daniil"]
[WhiteFideId "5819156"]
[BlackFideId "4166329"]
[WhiteElo "2026"]
[BlackElo "2261"]
[Result "0-1"]
[Round "01"]
[TimeControl "180+1"]
[Date "2022.11.16"]
[WhiteClock "0:00:02"]
[BlackClock "0:00:08"]

1. d4 {[%clk 0:02:59]}  Nf6 {[%clk 0:02:58]} 2. c4 {[%clk 0:02:54]}  c5 {[%clk 0:02:56]} 3. d5 {[%clk 0:02:54]}  b5 {[%clk 0:02:56]} 4. cxb5 {[%clk 0:02:54]}  a6 {[%clk 0:02:56]} 5. b6 {[%clk 0:02:54]}  e6 {[%clk 0:02:54]} 6. Nc3 {[%clk 0:02:52]}  Nxd5 {[%clk 0:02:54]} 7. Nxd5 {[%clk 0:02:52]}  exd5 {[%clk 0:02:55]} 8. Qxd5 {[%clk 0:02:52]}  Nc6 {[%clk 0:02:56]} 9. e4 {[%clk 0:02:49]}  Be7 {[%clk 0:02:55]} 10. Nf3 {[%clk 0:02:47]}  Rb8 {[%clk 0:02:53]} 11. Bc4 {[%clk 0:02:45]}  O-O {[%clk 0:02:52]} 12. O-O {[%clk 0:02:45]}  Rxb6 {[%clk 0:02:50]} 13. b3 {[%clk 0:02:28]}  d6 {[%clk 0:02:42]} 14. Bb2 {[%clk 0:02:25]}  Be6 {[%clk 0:02:38]} 15. Qd3 {[%clk 0:02:24]}  a5 {[%clk 0:01:58]} 16. Rad1 {[%clk 0:02:11]}  Qc8 {[%clk 0:01:37]} 17. Bxe6 {[%clk 0:02:00]}  fxe6 {[%clk 0:01:27]} 18. Nd2 {[%clk 0:01:55]}  Nb4 {[%clk 0:01:10]} 19. Qb1 {[%clk 0:01:54]}  e5 {[%clk 0:01:05]} 20. Nc4 {[%clk 0:01:53]}  Ra6 {[%clk 0:01:05]} 21. Bc3 {[%clk 0:01:52]}  Qc7 {[%clk 0:01:02]} 22. Ne3 {[%clk 0:01:46]}  Nc6 {[%clk 0:00:59]} 23. Nd5 {[%clk 0:01:46]}  Qd7 {[%clk 0:00:58]} 24. Qd3 {[%clk 0:01:45]}  Rfa8 {[%clk 0:00:53]} 25. Qg3 {[%clk 0:01:38]}  Kh8 {[%clk 0:00:50]} 26. f4 {[%clk 0:01:37]}  Bf6 {[%clk 0:00:41]} 27. Nxf6 {[%clk 0:01:29]}  gxf6 {[%clk 0:00:42]} 28. fxe5 {[%clk 0:01:30]}  fxe5 {[%clk 0:00:41]} 29. Rf6 {[%clk 0:01:27]}  Nd4 {[%clk 0:00:31]} 30. Bxd4 {[%clk 0:01:22]}  cxd4 {[%clk 0:00:32]} 31. Rdf1 {[%clk 0:01:21]}  Qg7 {[%clk 0:00:30]} 32. Qh4 {[%clk 0:01:16]}  Rg8 {[%clk 0:00:29]} 33. g3 {[%clk 0:01:16]}  Qg5 {[%clk 0:00:24]} 34. Qxg5 {[%clk 0:01:11]}  Rxg5 {[%clk 0:00:25]} 35. Rf8+ {[%clk 0:01:11]}  Rg8 {[%clk 0:00:24]} 36. Rxg8+ {[%clk 0:01:07]}  Kxg8 {[%clk 0:00:25]} 37. Rf6 {[%clk 0:01:07]}  Kg7 {[%clk 0:00:25]} 38. Re6 {[%clk 0:01:07]}  a4 {[%clk 0:00:24]} 39. b4 {[%clk 0:00:53]}  a3 {[%clk 0:00:24]} 40. Kf2 {[%clk 0:00:51]}  Rb6 {[%clk 0:00:23]} 41. Kf3 {[%clk 0:00:47]}  Rxb4 {[%clk 0:00:23]} 42. Rxd6 {[%clk 0:00:48]}  Rb2 {[%clk 0:00:23]} 43. Re6 {[%clk 0:00:42]}  Rxa2 {[%clk 0:00:22]} 44. Rxe5 {[%clk 0:00:43]}  Rxh2 {[%clk 0:00:21]} 45. Ra5 {[%clk 0:00:43]}  a2 {[%clk 0:00:21]} 46. Ra6 {[%clk 0:00:40]}  d3 {[%clk 0:00:17]} 47. Ke3 {[%clk 0:00:38]}  d2 {[%clk 0:00:17]} 48. Rxa2 {[%clk 0:00:38]}  d1=Q {[%clk 0:00:16]} 49. Rxh2 {[%clk 0:00:39]}  Kg6 {[%clk 0:00:16]} 50. Rf2 {[%clk 0:00:35]}  h5 {[%clk 0:00:15]} 51. Rf4 {[%clk 0:00:24]}  Kg5 {[%clk 0:00:13]} 52. Kf2 {[%clk 0:00:21]}  Qd2+ {[%clk 0:00:13]} 53. Kg1 {[%clk 0:00:13]}  Qe3+ {[%clk 0:00:11]} 54. Kg2 {[%clk 0:00:13]}  Qe2+ {[%clk 0:00:11]} 55. Kg1 {[%clk 0:00:13]}  Kg6 {[%clk 0:00:10]} 56. Rh4 {[%clk 0:00:11]}  Kg5 {[%clk 0:00:10]} 57. Rf4 {[%clk 0:00:10]}  Kg6 {[%clk 0:00:10]} 58. Rh4 {[%clk 0:00:10]}  Kf6 {[%clk 0:00:11]} 59. Rf4+ {[%clk 0:00:09]}  Ke5 {[%clk 0:00:11]} 60. Rh4 {[%clk 0:00:04]}  Kd4 {[%clk 0:00:10]} 61. e5+ {[%clk 0:00:03]}  Ke3 {[%clk 0:00:09]} 62. Rf4 {[%clk 0:00:02]}  Kd2 {[%clk 0:00:08]} 0-1


[Site "https://www.chess.com"]

[Event "Titled Tuesday Blitz November 15 Early 2022"]
[White "Goldin, Roman"]
[Black "Perez Gormaz, Matias"]
[WhiteFideId "2803860"]
[BlackFideId "3406342"]
[WhiteElo "2312"]
[BlackElo "2341"]
[Result "0-1"]
[Round "01"]
[TimeControl "180+1"]
[Date "2022.11.16"]
[WhiteClock "0:00:03"]
[BlackClock "0:00:37"]

1. e4 {[%clk 0:02:59]}  c5 {[%clk 0:02:59]} 2. Nf3 {[%clk 0:02:57]}  e6 {[%clk 0:02:59]} 3. d4 {[%clk 0:02:55]}  cxd4 {[%clk 0:03:00]} 4. Nxd4 {[%clk 0:02:55]}  a6 {[%clk 0:03:01]} 5. c4 {[%clk 0:02:53]}  Nf6 {[%clk 0:03:00]} 6. Nc3 {[%clk 0:02:52]}  Qc7 {[%clk 0:03:00]} 7. Be3 {[%clk 0:02:49]}  Bb4 {[%clk 0:02:53]} 8. Qc2 {[%clk 0:02:37]}  d5 {[%clk 0:02:46]} 9. cxd5 {[%clk 0:02:28]}  exd5 {[%clk 0:02:39]} 10. Qa4+ {[%clk 0:02:10]}  Nc6 {[%clk 0:02:39]} 11. Nxc6 {[%clk 0:02:10]}  Bxc3+ {[%clk 0:02:37]} 12. bxc3 {[%clk 0:02:10]}  bxc6 {[%clk 0:02:34]} 13. exd5 {[%clk 0:01:41]}  Nxd5 {[%clk 0:02:34]} 14. Bd4 {[%clk 0:01:22]}  O-O {[%clk 0:02:33]} 15. O-O-O {[%clk 0:01:06]}  Rb8 {[%clk 0:02:11]} 16. g3 {[%clk 0:00:51]}  Be6 {[%clk 0:01:05]} 17. Bc4 {[%clk 0:00:44]}  Nb6 {[%clk 0:00:58]} 18. Bxb6 {[%clk 0:00:41]}  Qxb6 {[%clk 0:00:59]} 19. Bb3 {[%clk 0:00:32]}  Qxf2 {[%clk 0:00:59]} 20. Rd2 {[%clk 0:00:30]}  Qe3 {[%clk 0:00:57]} 21. Qd4 {[%clk 0:00:10]}  Qxd4 {[%clk 0:00:52]} 22. Rxd4 {[%clk 0:00:09]}  Bxb3 {[%clk 0:00:53]} 23. axb3 {[%clk 0:00:09]}  Rxb3 {[%clk 0:00:54]} 24. Kc2 {[%clk 0:00:09]}  Rfb8 {[%clk 0:00:52]} 25. Ra1 {[%clk 0:00:06]}  Rb2+ {[%clk 0:00:52]} 26. Kd3 {[%clk 0:00:06]}  Rxh2 {[%clk 0:00:52]} 27. Rxa6 {[%clk 0:00:06]}  Rh3 {[%clk 0:00:50]} 28. Rxc6 {[%clk 0:00:01]}  Rxg3+ {[%clk 0:00:50]} 29. Kc4 {[%clk 0:00:01]}  h5 {[%clk 0:00:49]} 30. Rd7 {[%clk 0:00:01]}  Ra8 {[%clk 0:00:43]} 31. Rcc7 {[%clk 0:00:01]}  Ra4+ {[%clk 0:00:43]} 32. Kb5 {[%clk 0:00:02]}  Rf4 {[%clk 0:00:44]} 33. c4 {[%clk 0:00:01]}  h4 {[%clk 0:00:44]} 34. c5 {[%clk 0:00:02]}  h3 {[%clk 0:00:43]} 35. Rc8+ {[%clk 0:00:02]}  Kh7 {[%clk 0:00:42]} 36. Rdd8 {[%clk 0:00:02]}  Kg6 {[%clk 0:00:41]} 37. Kc6 {[%clk 0:00:02]}  Rh4 {[%clk 0:00:39]} 38. Rh8 {[%clk 0:00:03]}  Rgg4 {[%clk 0:00:37]} 0-1


[Site "https://www.chess.com"]